[Event "European Womens-ch 2025"]
[Site "Rhodes"]
[Date "2025.04.10"]
[Round "10.56"]
[White "Mihaljevic, Eva"]
[Black "Bochnickova, Andrea"]
[Result "1/2-1/2"]
[Annotator "ChessBase"]
[ECO "B84"]
[WhiteElo "2039"]
[BlackElo "2051"]
[PlyCount "140"]
[EventDate "2025.03.29"]
[EventType "swiss"]
[EventCountry "GRE"]
[SourceTitle "playchess.com"]
[Source "ChessBase"]
[SourceQuality "1"]
[TimeControl "40/5400+30:1800+30"]

1. e4 {[%emt 0:00:03]} c5 {[%emt 0:01:25]} 2. Nf3 {[%emt 0:00:09]} e6 {[%emt 0:00:05]} 3. d4 {[%emt 0:00:19]} cxd4 {[%emt 0:00:05]} 4. Nxd4 {[%emt 0:00:07]} a6 {[%emt 0:00:01]} 5. Nc3 {[%emt 0:00:55]} Qc7 {[%emt 0:00:26]} 6. a3 {[%emt 0:02:50]} Nf6 {[%emt 0:00:06]} 7. Be3 {[%emt 0:00:13]} Be7 {[%emt 0:00:13]} 8. Be2 {[%emt 0:00:17]} b5 {[%emt 0:00:28]} 9. O-O {[%emt 0:05:09]} Bb7 {[%emt 0:00:23]} 10. Bf3 {[%emt 0:03:23]} d6 {[%emt 0:00:42]} 11. g3 {[%emt 0:01:07]} Nbd7 {[%emt 0:00:19]} 12. Nb3 {[%emt 0:01:10]} Ne5 {[%emt 0:01:34]} 13. Bg2 {[%emt 0:01:58]} Nc4 {[%emt 0:00:51]} 14. Bc1 {[%emt 0:04:59]} O-O {[%emt 0:04:06]} 15. Nd2 {[%emt 0:01:45]} Rfd8 {[%emt 0:05:18]} 16. Nxc4 {[%emt 0:01:59]} Qxc4 {[%emt 0:05:37]} 17. Qd3 {[%emt 0:08:43]} Rab8 {[%emt 0:09:49]} 18. Re1 {[%emt 0:11:54]} Nd7 {[%emt 0:07:18]} 19. Be3 {[%emt 0:05:47]} Ne5 {[%emt 0:02:14]} 20. Qd1 {[%emt 0:08:15]} Qc7 {[%emt 0:02:43]} 21. Bd4 {[%emt 0:03:03]} Nc4 {[%emt 0:02:37]} 22. Nb1 {[%emt 0:03:57]} a5 {[%emt 0:10:05]} 23. Nd2 {[%emt 0:01:21]} e5 {[%emt 0:01:20]} 24. Nxc4 {[%emt 0:01:07]} exd4 {[%emt 0:09:14]} 25. Nd2 {[%emt 0:00:13]} Bf6 {[%emt 0:00:18]} 26. Nf3 {[%emt 0:07:09]} d3 {[%emt 0:07:27]} 27. c3 {[%emt 0:02:56]} b4 {[%emt 0:01:04]} 28. axb4 {[%emt 0:01:07]} axb4 {[%emt 0:00:19]} 29. Qxd3 {[%emt 0:04:03]} bxc3 {[%emt 0:00:15]} 30. Rac1 {[%emt 0:01:27]} Qa5 {[%emt 0:05:04]} 31. bxc3 {[%emt 0:00:26]} Ba6 {[%emt 0:00:30]} 32. Qe3 {[%emt 0:02:15]} Rb2 {[%emt 0:04:37]} 33. Nd4 {[%emt 0:04:41]} Rc8 {[%emt 0:02:30]} 34. Bh3 {[%emt 0:03:31]} Rc7 {[%emt 0:01:26]} 35. Ra1 {[%emt 0:02:42]} Qb6 {[%emt 0:01:26]} 36. Bf1 {[%emt 0:00:41]} Bb7 {[%emt 0:01:00]} 37. Qd3 {[%emt 0:02:26]} g6 {[%emt 0:02:26]} 38. Re2 {[%emt 0:03:15]} Rxc3 {[%emt 0:02:08]} 39. Qxc3 {[%emt 0:01:38]} Rxe2 {[%emt 0:02:24]} 40. Bxe2 {[%emt 0:00:00]} Bxd4 {[%emt 0:00:00]} 41. Qe1 {[%emt 0:00:56]} Bxa1 {[%emt 0:01:00]} 42. Qxa1 {[%emt 0:00:08]} Bxe4 {[%emt 0:00:19]} 43. h4 {[%emt 0:03:41]} Qb1+ {[%emt 0:01:05]} 44. Qxb1 {[%emt 0:00:13]} Bxb1 {[%emt 0:00:06]} 45. Bf3 {[%emt 0:00:16]} Ba2 {[%emt 0:05:30]} 46. Kf1 {[%emt 0:00:08]} f6 {[%emt 0:05:02]} 47. Ke2 {[%emt 0:00:27]} Kf7 {[%emt 0:00:06]} 48. Ke3 {[%emt 0:00:12]} Ke6 {[%emt 0:00:26]} 49. Be4 {[%emt 0:00:40]} f5 {[%emt 0:04:20]} 50. Bg2 {[%emt 0:05:03]} Bd5 {[%emt 0:00:53]} 51. Bf1 {[%emt 0:00:17]} h6 {[%emt 0:00:20]} 52. Kd4 {[%emt 0:02:22]} Bf3 {[%emt 0:03:43]} 53. Ke3 {[%emt 0:01:01]} Bd1 {[%emt 0:00:38]} 54. Kd4 {[%emt 0:00:15]} g5 {[%emt 0:03:44]} 55. hxg5 {[%emt 0:00:24]} hxg5 {[%emt 0:00:29]} 56. Bc4+ {[%emt 0:00:20]} Kf6 {[%emt 0:01:36]} 57. f4 {[%emt 0:01:15]} Bf3 {[%emt 0:00:15]} 58. Bd3 {[%emt 0:00:45]} Kg6 {[%emt 0:01:58]} 59. Ke3 {[%emt 0:00:36]} Bd1 {[%emt 0:00:43]} 60. Kd4 {[%emt 0:00:18]} Bb3 {[%emt 0:02:28]} 61. Ke3 {[%emt 0:00:16]} Be6 {[%emt 0:00:32]} 62. g4 {[%emt 0:00:39]} Kf6 {[%emt 0:00:45]} 63. fxg5+ {[%emt 0:00:06]} Kxg5 {[%emt 0:00:12]} 64. gxf5 {[%emt 0:00:04]} Bxf5 {[%emt 0:00:06]} 65. Bc4 {[%emt 0:00:21]} Kf6 {[%emt 0:00:23]} 66. Kd4 {[%emt 0:00:04]} Be6 {[%emt 0:00:05]} 67. Bxe6 {[%emt 0:00:12]} Kxe6 {[%emt 0:00:05]} 68. Ke4 {[%emt 0:00:04]} d5+ {[%emt 0:00:09]} 69. Kd4 {[%emt 0:00:05]} Kd6 {[%emt 0:00:06]} 70. Kd3 {[%emt 0:00:06]} Ke5 {[%emt 0:00:07]} 1/2-1/2

[Event "European Womens-ch 2025"]
[Site "Rhodes"]
[Date "2025.04.10"]
[Round "10.57"]
[White "Karadas, Hena"]
[Black "Hariharan, Shambavi"]
[Result "1/2-1/2"]
[Annotator "NA"]
[ECO "D03"]
[WhiteElo "1931"]
[BlackElo "2024"]
[PlyCount "53"]
[EventDate "2025.03.29"]
[EventType "swiss"]
[EventCountry "GRE"]
[SourceTitle "playchess.com"]
[Source "ChessBase"]
[SourceQuality "1"]
[TimeControl "40/5400+30:1800+30"]

1. d4 {[%emt 0:00:03]} d5 {[%emt 0:00:33]} 2. Nf3 {[%emt 0:00:08]} Nf6 {[%emt 0:00:08]} 3. Bg5 {[%emt 0:00:08]} Ne4 {[%emt 0:00:16]} 4. Bh4 {[%emt 0:00:09]} Qd6 {[%emt 0:00:15]} 5. c3 {[%emt 0:06:35]} Qh6 {[%emt 0:00:39]} 6. Nbd2 {[%emt 0:04:18]} g5 {[%emt 0:01:37]} 7. Bg3 {[%emt 0:01:26]} Nxg3 {[%emt 0:00:23]} 8. fxg3 {[%emt 0:00:16]} g4 {[%emt 0:00:33]} 9. Ne5 {[%emt 0:01:56]} Qe3 {[%emt 0:00:41]} 10. Qb3 {[%emt 0:07:55]} Bh6 {[%emt 0:02:47]} 11. O-O-O {[%emt 0:02:28]} c6 {[%emt 0:01:11]} 12. h3 {[%emt 0:08:10]} gxh3 {[%emt 0:09:29]} 13. g4 {[%emt 0:03:03]} h2 {[%emt 0:09:40]} 14. Rxh2 {[%emt 0:01:00]} f6 {[%emt 0:02:19]} 15. Rh3 {[%emt 0:06:28]} Qg5 {[%emt 0:01:20]} 16. Nd3 {[%emt 0:03:50]} b6 {[%emt 0:03:16]} 17. Nf2 {[%emt 0:02:51]} f5 {[%emt 0:17:50]} 18. gxf5 {[%emt 0:02:46]} Bxf5 {[%emt 0:00:30]} 19. g4 {[%emt 0:00:28]} Bd7 {[%emt 0:04:21]} 20. e4 {[%emt 0:08:15]} Rf8 {[%emt 0:02:36]} 21. Rh2 {[%emt 0:07:04]} Qe3 {[%emt 0:07:44]} 22. Rh3 {[%emt 0:08:04]} Qxf2 {[%emt 0:09:41]} 23. Rxh6 {[%emt 0:00:12]} Bxg4 {[%emt 0:00:07]} 24. exd5 {[%emt 0:02:01]} Bxd1 {[%emt 0:00:25]} 25. Qxd1 {[%emt 0:00:05]} cxd5 {[%emt 0:03:05]} 26. Rxh7 {[%emt 0:02:38]} Qf5 {[%emt 0:04:45]} 27. Rh5 {[%emt 0:02:17]} 1/2-1/2

[Event "European Womens-ch 2025"]
[Site "Rhodes"]
[Date "2025.04.10"]
[Round "10.58"]
[White "Acarbay, Algi"]
[Black "Kosma, Maria"]
[Result "1-0"]
[Annotator "NA"]
[ECO "B51"]
[WhiteElo "2052"]
[BlackElo "1826"]
[PlyCount "125"]
[EventDate "2025.03.29"]
[EventType "swiss"]
[EventCountry "GRE"]
[SourceTitle "playchess.com"]
[Source "ChessBase"]
[SourceQuality "1"]
[TimeControl "40/5400+30:1800+30"]

1. e4 {[%emt 0:02:28]} c5 {[%emt 0:00:05]} 2. Nc3 {[%emt 0:00:12]} Nc6 {[%emt 0:00:33]} 3. Nf3 {[%emt 0:01:15]} d6 {[%emt 0:10:25]} 4. Bb5 {[%emt 0:01:20]} e5 {[%emt 0:03:47]} 5. Bc4 {[%emt 0:00:49]} Be7 {[%emt 0:01:36]} 6. d3 {[%emt 0:00:27]} Nf6 {[%emt 0:04:59]} 7. Bg5 {[%emt 0:02:36]} Be6 {[%emt 0:02:01]} 8. Bxf6 {[%emt 0:00:42]} Bxf6 {[%emt 0:00:31]} 9. Nd5 {[%emt 0:00:48]} O-O {[%emt 0:05:00]} 10. a4 {[%emt 0:02:06]} Rb8 {[%emt 0:05:56]} 11. h4 {[%emt 0:06:49]} Bxd5 {[%emt 0:11:26]} 12. Bxd5 {[%emt 0:01:05]} Ne7 {[%emt 0:02:53]} 13. c4 {[%emt 0:01:57]} Nxd5 {[%emt 0:47:48]} 14. cxd5 {[%emt 0:00:13]} Qd7 {[%emt 0:00:00]} 15. Nd2 {[%emt 0:04:58]} Bd8 {[%emt 0:00:00]} 16. Nc4 {[%emt 0:09:46]} f5 {[%emt 0:00:00]} 17. Qe2 {[%emt 0:04:54]} Bc7 {[%emt 0:00:00]} 18. Rh3 {[%emt 0:34:05]} f4 {[%emt 0:00:00]} 19. Kf1 {[%emt 0:02:49]} b6 {[%emt 0:00:00]} 20. h5 {[%emt 0:05:05]} a6 {[%emt 0:00:00]} 21. f3 {[%emt 0:07:37]} b5 {[%emt 0:00:00]} 22. Na3 {[%emt 0:00:19]} Bb6 {[%emt 0:00:00]} 23. g4 {[%emt 0:01:39]} fxg3 {[%emt 0:00:00]} 24. Rxg3 {[%emt 0:00:25]} Bd8 {[%emt 0:00:00]} 25. Kg2 {[%emt 0:00:38]} Rf4 {[%emt 0:00:00]} 26. axb5 {[%emt 0:01:54]} axb5 {[%emt 0:00:00]} 27. Nc2 {[%emt 0:00:21]} Bh4 {[%emt 0:00:00]} 28. Rh3 {[%emt 0:01:09]} Bg5 {[%emt 0:00:00]} 29. Ne3 {[%emt 0:01:05]} Rff8 {[%emt 0:00:00]} 30. Nf5 {[%emt 0:02:06]} Ra8 {[%emt 0:01:01]} 31. Qd1 {[%emt 0:01:34]} Bf4 {[%emt 0:00:50]} 32. Rh4 {[%emt 0:00:43]} Bg5 {[%emt 0:01:49]} 33. Rg4 {[%emt 0:00:17]} h6 {[%emt 0:00:04]} 34. Kf2 {[%emt 0:00:59]} Ra4 {[%emt 0:00:57]} 35. b3 {[%emt 0:00:59]} Ra7 {[%emt 0:02:55]} 36. Rxa7 {[%emt 0:01:37]} Qxa7 {[%emt 0:00:01]} 37. Kg2 {[%emt 0:00:35]} Qa2+ {[%emt 0:01:52]} 38. Kh3 {[%emt 0:00:07]} Rd8 {[%emt 0:01:30]} 39. Rg2 {[%emt 0:00:10]} Qa7 {[%emt 0:00:13]} 40. Qb1 {[%emt 0:00:00]} Qf7 {[%emt 0:00:00]} 41. Kg4 {[%emt 0:12:18]} Be7 {[%emt 0:01:13]} 42. Qa1 {[%emt 0:04:11]} Re8 {[%emt 0:13:56]} 43. Qa6 {[%emt 0:06:34]} Qf6 {[%emt 0:00:38]} 44. Kh3 {[%emt 0:00:21]} Bf8 {[%emt 0:05:11]} 45. Rg6 {[%emt 0:00:19]} Qd8 {[%emt 0:00:27]} 46. Nxh6+ {[%emt 0:04:23]} Kh7 {[%emt 0:00:07]} 47. Nf5 {[%emt 0:00:18]} Qd7 {[%emt 0:04:54]} 48. Kg3 {[%emt 0:03:02]} c4 {[%emt 0:01:51]} 49. dxc4 {[%emt 0:00:36]} bxc4 {[%emt 0:00:02]} 50. bxc4 {[%emt 0:00:19]} Rb8 {[%emt 0:00:54]} 51. Nxd6 {[%emt 0:02:00]} Bxd6 {[%emt 0:01:49]} 52. Qxd6 {[%emt 0:00:17]} Qa7 {[%emt 0:00:10]} 53. c5 {[%emt 0:01:12]} Rb7 {[%emt 0:05:01]} 54. h6 {[%emt 0:00:44]} Qa1 {[%emt 0:01:54]} 55. Rxg7+ {[%emt 0:01:19]} Rxg7+ {[%emt 0:00:02]} 56. hxg7 {[%emt 0:00:05]} Qg1+ {[%emt 0:00:56]} 57. Kh3 {[%emt 0:00:37]} Qh1+ {[%emt 0:00:33]} 58. Kg4 {[%emt 0:00:13]} Qg2+ {[%emt 0:00:57]} 59. Kf5 {[%emt 0:00:09]} Qxg7 {[%emt 0:00:42]} 60. Qxe5 {[%emt 0:00:36]} Qg6+ {[%emt 0:00:25]} 61. Kf4 {[%emt 0:00:11]} Qh6+ {[%emt 0:00:12]} 62. Qg5 {[%emt 0:00:07]} Qh2+ {[%emt 0:00:04]} 63. Kf5 {[%emt 0:00:43]} 1-0

[Event "European Womens-ch 2025"]
[Site "Rhodes"]
[Date "2025.04.10"]
[Round "10.59"]
[White "Kiousi, Panagiota"]
[Black "Kalyva, Kyriaki"]
[Result "0-1"]
[Annotator "NA"]
[ECO "E08"]
[WhiteElo "1998"]
[BlackElo "1885"]
[PlyCount "102"]
[EventDate "2025.03.29"]
[EventType "swiss"]
[EventCountry "GRE"]
[SourceTitle "playchess.com"]
[Source "ChessBase"]
[SourceQuality "1"]
[TimeControl "40/5400+30:1800+30"]

1. Nf3 {[%emt 0:00:03]} Nf6 {[%emt 1:31:00]} 2. g3 {[%emt 0:00:07]} d5 {[%emt 0:00:00]} 3. d4 {[%emt 0:00:09]} e6 {[%emt 0:00:00]} 4. Bg2 {[%emt 0:00:08]} Be7 {[%emt 0:00:00]} 5. c4 {[%emt 0:00:07]} c6 {[%emt 0:00:00]} 6. O-O {[%emt 0:00:16]} O-O {[%emt 0:00:00]} 7. Qc2 {[%emt 0:00:05]} Nbd7 {[%emt 0:00:00]} 8. Rd1 {[%emt 0:00:09]} Bd6 {[%emt 0:00:00]} 9. Nc3 {[%emt 0:18:46]} Qc7 {[%emt 0:00:00]} 10. c5 {[%emt 0:04:14]} Be7 {[%emt 0:00:00]} 11. Bf4 {[%emt 0:00:06]} Qd8 {[%emt 0:00:00]} 12. b4 {[%emt 0:03:18]} b6 {[%emt 0:00:00]} 13. a4 {[%emt 0:29:46]} a5 {[%emt 0:00:00]} 14. b5 {[%emt 0:02:15]} Bb7 {[%emt 0:00:00]} 15. cxb6 {[%emt 0:04:08]} Qxb6 {[%emt 0:00:00]} 16. bxc6 {[%emt 0:04:19]} Qxc6 {[%emt 0:00:00]} 17. Qb3 {[%emt 0:00:34]} Nh5 {[%emt 0:00:00]} 18. Bd2 {[%emt 0:05:38]} Ba6 {[%emt 0:00:00]} 19. Nb5 {[%emt 0:02:18]} Rab8 {[%emt 0:00:00]} 20. Rab1 {[%emt 0:03:03]} Rfc8 {[%emt 0:00:00]} 21. Bxa5 {[%emt 0:04:23]} Nhf6 {[%emt 0:00:00]} 22. Nd2 {[%emt 0:07:30]} Qa8 {[%emt 0:00:00]} 23. Bc3 {[%emt 0:01:08]} Nb6 {[%emt 0:00:00]} 24. Rdc1 {[%emt 0:01:04]} Qb7 {[%emt 0:00:00]} 25. Na3 {[%emt 0:03:56]} Qd7 {[%emt 0:00:00]} 26. Ba5 {[%emt 0:03:28]} Rxc1+ {[%emt 0:00:00]} 27. Rxc1 {[%emt 0:00:10]} Qxa4 {[%emt 0:00:00]} 28. Bxb6 {[%emt 0:01:15]} Qxb3 {[%emt 0:00:00]} 29. Nxb3 {[%emt 0:00:07]} Rxb6 {[%emt 0:00:00]} 30. Nc5 {[%emt 0:00:12]} Bxe2 {[%emt 0:00:41]} 31. Rc2 {[%emt 0:00:06]} Bd1 {[%emt 0:01:04]} 32. Rc1 {[%emt 0:00:18]} Bg4 {[%emt 0:01:42]} 33. Bf1 {[%emt 0:00:46]} h5 {[%emt 0:01:53]} 34. Kg2 {[%emt 0:00:35]} Bf5 {[%emt 0:01:44]} 35. Nc2 {[%emt 0:01:00]} Bxc2 {[%emt 0:00:35]} 36. Rxc2 {[%emt 0:00:02]} Rb4 {[%emt 0:00:45]} 37. Rd2 {[%emt 0:00:20]} Ne8 {[%emt 0:03:43]} 38. Be2 {[%emt 0:00:55]} g6 {[%emt 0:00:13]} 39. f3 {[%emt 0:00:54]} Bf6 {[%emt 0:00:57]} 40. Nd7 {[%emt 0:00:00]} Bxd4 {[%emt 0:00:00]} 41. Rc2 {[%emt 0:02:10]} Kg7 {[%emt 0:01:20]} 42. Rc8 {[%emt 0:00:32]} Nd6 {[%emt 0:00:21]} 43. Rc7 {[%emt 0:01:52]} Rb2 {[%emt 0:00:50]} 44. Kf1 {[%emt 0:00:08]} Nf5 {[%emt 0:35:42]} 45. f4 {[%emt 0:01:50]} h4 {[%emt 0:00:00]} 46. g4 {[%emt 0:02:07]} Ne3+ {[%emt 0:00:00]} 47. Ke1 {[%emt 0:00:06]} Ng2+ {[%emt 0:00:00]} 48. Kd1 {[%emt 0:00:20]} Nxf4 {[%emt 0:02:00]} 49. Ba6 {[%emt 0:01:26]} Rxh2 {[%emt 0:00:00]} 50. g5 {[%emt 0:00:22]} Rg2 {[%emt 0:00:00]} 51. Nb8 {[%emt 0:00:04]} h3 {[%emt 0:00:00]} 0-1

[Event "European Womens-ch 2025"]
[Site "Rhodes"]
[Date "2025.04.10"]
[Round "10.60"]
[White "Harutyunyan, Gabriela"]
[Black "Golsta, Ramona"]
[Result "0-1"]
[Annotator "NA"]
[ECO "B23"]
[WhiteElo "1793"]
[BlackElo "1943"]
[PlyCount "72"]
[EventDate "2025.03.29"]
[EventType "swiss"]
[EventCountry "GRE"]
[SourceTitle "playchess.com"]
[Source "ChessBase"]
[SourceQuality "1"]
[TimeControl "40/5400+30:1800+30"]

1. e4 {[%emt 0:00:03]} c5 {[%emt 0:00:32]} 2. Nc3 {[%emt 0:00:19]} Nc6 {[%emt 0:00:17]} 3. Bb5 {[%emt 0:00:10]} Nd4 {[%emt 0:00:04]} 4. Bc4 {[%emt 0:00:16]} e6 {[%emt 0:01:10]} 5. Nge2 {[%emt 0:01:42]} Nf6 {[%emt 0:01:49]} 6. Nxd4 {[%emt 0:17:22]} cxd4 {[%emt 0:00:07]} 7. Ne2 {[%emt 0:00:45]} Nxe4 {[%emt 0:01:04]} 8. O-O {[%emt 0:05:41]} Bd6 {[%emt 0:09:18]} 9. d3 {[%emt 0:05:03]} Nc5 {[%emt 0:02:58]} 10. Nxd4 {[%emt 0:04:37]} Bxh2+ {[%emt 0:09:50]} 11. Kxh2 {[%emt 0:01:24]} Qh4+ {[%emt 0:00:04]} 12. Kg1 {[%emt 0:00:07]} Qxd4 {[%emt 0:00:05]} 13. Be3 {[%emt 0:00:43]} Qd6 {[%emt 0:00:40]} 14. Qg4 {[%emt 0:03:32]} b6 {[%emt 0:05:05]} 15. Qf3 {[%emt 0:10:10]} Qc6 {[%emt 0:01:11]} 16. Qg4 {[%emt 0:03:17]} Bb7 {[%emt 0:06:25]} 17. b4 {[%emt 0:13:49]} h5 {[%emt 0:13:56]} 18. Qg5 {[%emt 0:00:55]} d5 {[%emt 0:12:01]} 19. bxc5 {[%emt 0:03:10]} dxc4 {[%emt 0:01:00]} 20. cxb6 {[%emt 0:01:08]} axb6 {[%emt 0:00:31]} 21. Rab1 {[%emt 0:01:05]} Qd5 {[%emt 0:11:30]} 22. Qg3 {[%emt 0:10:54]} h4 {[%emt 0:00:59]} 23. Qh3 {[%emt 0:00:33]} cxd3 {[%emt 0:02:33]} 24. Rxb6 {[%emt 0:07:13]} dxc2 {[%emt 0:01:41]} 25. Rb4 {[%emt 0:01:12]} Rxa2 {[%emt 0:02:03]} 26. Rd4 {[%emt 0:03:58]} Qc6 {[%emt 0:06:36]} 27. f3 {[%emt 0:01:04]} Ra4 {[%emt 0:01:02]} 28. Rd3 {[%emt 0:00:59]} O-O {[%emt 0:01:07]} 29. Rc1 {[%emt 0:00:40]} Qc4 {[%emt 0:02:28]} 30. Rd2 {[%emt 0:01:02]} Ra2 {[%emt 0:00:16]} 31. Qh2 {[%emt 0:00:38]} Qc3 {[%emt 0:01:46]} 32. Re2 {[%emt 0:02:00]} Ra1 {[%emt 0:00:44]} 33. Qxh4 {[%emt 0:00:33]} Qxe3+ {[%emt 0:00:58]} 34. Rxe3 {[%emt 0:00:11]} Rxc1+ {[%emt 0:00:04]} 35. Re1 {[%emt 0:00:18]} Rd1 {[%emt 0:00:46]} 36. Qb4 {[%emt 0:00:40]} c1=Q {[%emt 0:00:16]} 0-1

[Event "European Womens-ch 2025"]
[Site "Rhodes"]
[Date "2025.04.10"]
[Round "10.61"]
[White "Nenova, Andzhelika"]
[Black "Mitraka, Chrysoula-Paraskevi"]
[Result "1-0"]
[Annotator "NA"]
[ECO "B12"]
[WhiteElo "1903"]
[BlackElo "1820"]
[PlyCount "83"]
[EventDate "2025.03.29"]
[EventType "swiss"]
[EventCountry "GRE"]
[SourceTitle "playchess.com"]
[Source "ChessBase"]
[SourceQuality "1"]
[TimeControl "40/5400+30:1800+30"]

1. e4 {[%emt 0:01:18]} c6 {[%emt 0:00:11]} 2. d4 {[%emt 0:00:05]} d5 {[%emt 0:00:07]} 3. f3 {[%emt 0:00:07]} e6 {[%emt 0:00:43]} 4. Bd3 {[%emt 0:00:08]} Nf6 {[%emt 0:04:47]} 5. e5 {[%emt 0:00:35]} Nfd7 {[%emt 0:00:59]} 6. f4 {[%emt 0:00:15]} c5 {[%emt 0:02:24]} 7. c3 {[%emt 0:00:05]} Nc6 {[%emt 0:02:06]} 8. Nf3 {[%emt 0:00:05]} Be7 {[%emt 0:02:16]} 9. O-O {[%emt 0:01:49]} h6 {[%emt 0:07:08]} 10. Be3 {[%emt 0:00:58]} a6 {[%emt 0:02:17]} 11. Nbd2 {[%emt 0:00:45]} b5 {[%emt 0:05:39]} 12. Qe1 {[%emt 0:04:12]} Qb6 {[%emt 0:08:19]} 13. f5 {[%emt 0:06:36]} exf5 {[%emt 0:12:41]} 14. Bxf5 {[%emt 0:01:09]} Nf8 {[%emt 0:00:44]} 15. Bxc8 {[%emt 0:01:17]} Rxc8 {[%emt 0:00:35]} 16. Qf2 {[%emt 0:00:25]} Ne6 {[%emt 0:16:58]} 17. Nb3 {[%emt 0:03:02]} c4 {[%emt 0:09:45]} 18. Nbd2 {[%emt 0:00:13]} Rf8 {[%emt 0:02:42]} 19. Rae1 {[%emt 0:01:08]} Kd7 {[%emt 0:01:39]} 20. Nh4 {[%emt 0:00:58]} Bxh4 {[%emt 0:02:19]} 21. Qxh4 {[%emt 0:00:03]} Qd8 {[%emt 0:01:14]} 22. Qh5 {[%emt 0:00:35]} Qe7 {[%emt 0:05:00]} 23. Qf3 {[%emt 0:00:07]} Nc7 {[%emt 0:02:21]} 24. b3 {[%emt 0:00:05]} Rb8 {[%emt 0:03:20]} 25. Qg4+ {[%emt 0:14:36]} Ne6 {[%emt 0:00:34]} 26. Rd1 {[%emt 0:05:33]} Na5 {[%emt 0:04:55]} 27. Ne4 {[%emt 0:04:52]} Nb7 {[%emt 0:00:44]} 28. Nc5+ {[%emt 0:01:30]} Nbxc5 {[%emt 0:00:17]} 29. dxc5 {[%emt 0:00:06]} Kc6 {[%emt 0:00:55]} 30. Rxd5 {[%emt 0:00:23]} Rbd8 {[%emt 0:00:50]} 31. Rd6+ {[%emt 0:00:18]} Kc7 {[%emt 0:00:55]} 32. Qe4 {[%emt 0:00:36]} Qe8 {[%emt 0:00:21]} 33. Rfd1 {[%emt 0:01:09]} cxb3 {[%emt 0:00:40]} 34. axb3 {[%emt 0:00:08]} h5 {[%emt 0:00:17]} 35. Qb4 {[%emt 0:00:38]} Kb7 {[%emt 0:00:37]} 36. Qa5 {[%emt 0:00:59]} Nc7 {[%emt 0:00:25]} 37. Qb6+ {[%emt 0:01:14]} Kc8 {[%emt 0:00:16]} 38. c6 {[%emt 0:00:31]} Qxc6 {[%emt 0:00:55]} 39. Qxc6 {[%emt 0:00:14]} Rfe8 {[%emt 0:00:32]} 40. Bb6 {[%emt 0:00:00]} Kb8 {[%emt 0:00:00]} 41. Qxc7+ {[%emt 0:00:23]} Ka8 {[%emt 0:00:43]} 42. Qa7# {[%emt 0:00:05]} 1-0

[Event "European Womens-ch 2025"]
[Site "Rhodes"]
[Date "2025.04.10"]
[Round "10.62"]
[White "Bania, Eleni"]
[Black "Recica, Jona"]
[Result "1/2-1/2"]
[Annotator "NA"]
[ECO "C28"]
[WhiteElo "1809"]
[BlackElo "1716"]
[PlyCount "31"]
[EventDate "2025.03.29"]
[EventType "swiss"]
[EventCountry "GRE"]
[SourceTitle "playchess.com"]
[Source "ChessBase"]
[SourceQuality "1"]
[TimeControl "40/5400+30:1800+30"]

1. e4 {[%emt 0:00:03]} e5 {[%emt 0:00:15]} 2. Nc3 {[%emt 0:00:05]} Nc6 {[%emt 0:00:06]} 3. Bc4 {[%emt 0:00:07]} Nf6 {[%emt 0:00:07]} 4. d3 {[%emt 0:00:05]} Na5 {[%emt 0:00:11]} 5. Bb3 {[%emt 0:00:20]} Nxb3 {[%emt 0:00:36]} 6. axb3 {[%emt 0:00:07]} d5 {[%emt 0:00:15]} 7. Bg5 {[%emt 0:05:39]} Bb4 {[%emt 0:03:52]} 8. Bxf6 {[%emt 0:11:36]} gxf6 {[%emt 0:02:20]} 9. exd5 {[%emt 0:01:34]} Qxd5 {[%emt 0:00:33]} 10. Qf3 {[%emt 0:01:16]} Qxf3 {[%emt 0:02:33]} 11. Nxf3 {[%emt 0:00:23]} Rg8 {[%emt 0:01:17]} 12. g3 {[%emt 0:03:00]} Bd7 {[%emt 0:02:58]} 13. Nd2 {[%emt 1:12:45]} Bc6 {[%emt 0:04:19]} 14. Rf1 {[%emt 0:00:00]} Bg2 {[%emt 0:03:44]} 15. Rg1 {[%emt 0:00:00]} Bc6 {[%emt 0:00:08]} 16. Rf1 {[%emt 0:00:00]} 1/2-1/2

[Event "European Womens-ch 2025"]
[Site "Rhodes"]
[Date "2025.04.10"]
[Round "10.63"]
[White "Alexandri, Dimitra"]
[Black "Saraci, Ndriqona"]
[Result "1-0"]
[Annotator "NA"]
[ECO "D36"]
[WhiteElo "1995"]
[BlackElo "1692"]
[PlyCount "75"]
[EventDate "2025.03.29"]
[EventType "swiss"]
[EventCountry "GRE"]
[SourceTitle "playchess.com"]
[Source "ChessBase"]
[SourceQuality "1"]
[TimeControl "40/5400+30:1800+30"]

1. d4 {[%emt 0:00:03]} Nf6 {[%emt 0:00:07]} 2. c4 {[%emt 0:00:08]} e6 {[%emt 0:00:05]} 3. Nc3 {[%emt 0:00:08]} d5 {[%emt 0:00:09]} 4. cxd5 {[%emt 0:00:08]} exd5 {[%emt 0:00:07]} 5. Bg5 {[%emt 0:00:10]} Be7 {[%emt 0:00:59]} 6. e3 {[%emt 0:00:14]} c6 {[%emt 0:00:08]} 7. Bd3 {[%emt 0:00:30]} Nbd7 {[%emt 1:32:25]} 8. Nge2 Nh5 {[%emt 0:00:00]} 9. Bxe7 {[%emt 0:01:02]} Qxe7 {[%emt 0:00:00]} 10. Qc2 {[%emt 0:00:44]} g6 {[%emt 0:00:00]} 11. O-O-O {[%emt 0:07:31]} Ng7 {[%emt 0:00:00]} 12. Nf4 {[%emt 0:03:44]} Nb6 {[%emt 0:00:00]} 13. h4 {[%emt 0:05:36]} h5 {[%emt 0:00:00]} 14. Rde1 {[%emt 0:08:51]} Bf5 {[%emt 0:00:00]} 15. e4 {[%emt 0:04:25]} dxe4 {[%emt 0:00:00]} 16. Bxe4 {[%emt 0:01:11]} Bxe4 {[%emt 0:00:00]} 17. Rxe4 {[%emt 0:01:00]} Ne6 {[%emt 0:00:00]} 18. Rhe1 {[%emt 0:07:20]} O-O-O {[%emt 0:00:00]} 19. d5 {[%emt 0:02:16]} Nxd5 {[%emt 0:00:00]} 20. Ncxd5 {[%emt 0:03:40]} Qc5 {[%emt 0:00:00]} 21. Nxe6 {[%emt 0:04:47]} Qxc2+ {[%emt 0:00:00]} 22. Kxc2 {[%emt 0:00:05]} Rxd5 {[%emt 0:00:00]} 23. Ng5 {[%emt 0:00:34]} Rhd8 {[%emt 0:00:00]} 24. Nf3 {[%emt 0:01:20]} Rc5+ {[%emt 0:00:00]} 25. Kb1 {[%emt 0:00:40]} f6 {[%emt 0:00:00]} 26. Re8 {[%emt 0:04:10]} Rxe8 {[%emt 0:00:00]} 27. Rxe8+ {[%emt 0:00:09]} Kd7 {[%emt 0:00:00]} 28. Rg8 {[%emt 0:00:21]} Rd5 {[%emt 0:00:00]} 29. Rxg6 {[%emt 0:00:19]} Ke6 {[%emt 0:00:00]} 30. Kc2 {[%emt 0:01:26]} a5 {[%emt 0:00:00]} 31. Rg7 {[%emt 0:09:44]} b5 {[%emt 0:00:00]} 32. Ne1 {[%emt 0:01:12]} c5 {[%emt 0:00:00]} 33. Nd3 {[%emt 0:00:42]} Kf5 {[%emt 0:00:00]} 34. g3 c4 {[%emt 0:00:00]} 35. Nf4 Rc5 {[%emt 0:00:00]} 36. Nxh5 Ke4 {[%emt 0:14:30]} 37. Nxf6+ {[%emt 0:04:16]} Kf3 {[%emt 0:00:30]} 38. Rg5 {[%emt 0:00:32]} 1-0